bitfinex/quotes_SOLUSD_20241125
["timestamp","ask_amount","ask_price","bid_price","bid_amount"]
[1732570436337,21.55382176,237.79,237.69,20.29222176]
[1732570436512,21.55382176,237.79,237.72,20.29222176]
[1732570436912,20.29222176,237.78,237.71,20.29222176]
[1732570437135,21.55382176,237.79,237.71,20.29222176]
[1732570439343,21.55372176,237.81,237.73,20.29222176]
[1732570439538,20.29222176,237.79,237.71,20.29222176]
[1732570440425,20.29222176,237.83,237.75,20.29222176]
[1732570440746,20.29222176,237.77,237.69,20.29222176]
[1732570441130,20.29222176,237.75,237.68,20.29222176]
[1732570441325,30.0,237.74,237.68,20.29222176]
[1732570441527,30.0,237.74,237.69,20.29222176]
[1732570441742,30.0,237.74,237.7,20.29222176]
[1732570442244,1.2617,237.77,237.71,20.29222176]
[1732570443017,20.29222176,237.81,237.73,20.29222176]
[1732570443418,21.55372176,237.81,237.72,20.29222176]
[1732570443615,20.29222176,237.79,237.72,20.29222176]
[1732570444432,12.746881,237.8,237.72,12.746881]
[1732570444644,1.2616,237.79,237.72,12.746881]
[1732570444943,12.746881,237.76,237.68,12.746881]
[1732570445142,12.746881,237.76,237.65,0.4777795]
[1732570445143,12.746881,237.74,237.65,0.4777795]
[1732570445355,12.746881,237.73,237.65,13.2246605]
[1732570446254,12.746881,237.69,237.65,0.4777795]
[1732570446419,12.746881,237.67,237.65,0.4777795]
[1732570446627,7.4767,237.66,237.65,0.4777795]
[1732570446946,90.223581,237.66,237.65,0.4777795]
[1732570447145,100.223581,237.66,237.65,0.4777795]
[1732570447321,124.000465,237.66,237.65,0.4777795]
[1732570447724,114.000465,237.66,237.65,0.4777795]
[1732570447950,90.223581,237.66,237.65,0.4777795]
[1732570448147,90.223581,237.66,237.53,12.746881]
[1732570448448,90.223581,237.66,237.39,20.4500239]
[1732570448449,70.0,237.5,237.39,20.4500239]
[1732570448634,21.7132239,237.49,237.39,20.4500239]
[1732570449137,20.4500239,237.45,237.37,20.4500239]
[1732570449330,30.0,237.44,237.37,20.4500239]
[1732570449651,30.0,237.44,237.39,20.4500239]
[1732570449880,30.0,237.44,237.41,20.9278034]
[1732570450148,30.0,237.44,237.41,0.4777795]
[1732570450532,31.2635,237.44,237.41,0.4777795]
[1732570450719,20.4500239,237.43,237.41,0.4777795]
[1732570450925,30.0,237.42,237.41,0.4777795]
[1732570451329,30.0,237.42,237.21,10.0]
[1732570451330,6.5931,237.4,237.21,10.0]
[1732570451553,6.5931,237.4,237.12,64.84118222]
[1732570451554,20.4500239,237.22,237.14,39.25955609]
[1732570451736,20.4500239,237.18,237.14,39.25955609]
[1732570451927,50.4500239,237.18,237.14,39.25955609]
[1732570452127,50.4500239,237.18,237.11,38.23733559]
[1732570452456,20.4500239,237.12,237.11,38.23733559]
[1732570452755,30.0,237.18,237.1,20.4500239]
[1732570452955,30.0,237.16,237.12,20.4500239]
[1732570453125,30.0,237.16,237.1,20.4500239]
[1732570453332,20.4500239,237.11,237.0,2.0]
[1732570453640,20.4500239,237.12,237.04,20.4500239]
[1732570453942,30.0,237.1,237.04,20.4500239]
[1732570454135,70.0,237.18,237.04,20.4500239]
[1732570454136,20.4500239,237.18,237.08,20.4500239]
[1732570454336,20.4500239,237.2,237.1,20.4500239]
[1732570454552,20.4500239,237.22,237.13,4.217]
[1732570454755,20.4500239,237.26,237.16,20.4500239]
[1732570455130,20.4500239,237.24,237.14,20.4500239]
[1732570455435,20.4500239,237.2,237.1,20.4500239]
[1732570455740,20.4500239,237.18,237.1,20.4500239]
[1732570455947,30.0,237.16,237.1,20.4500239]
[1732570456146,30.0,237.16,237.05,27.995384]
[1732570456453,50.4500239,237.16,237.06,20.4500239]
[1732570456626,50.4500239,237.16,237.08,24.6678239]
[1732570457061,50.4500239,237.16,237.06,24.6682239]
[1732570457462,50.4500239,237.16,237.08,20.4500239]
[1732570457633,30.0,237.16,237.14,20.4500239]
[1732570459448,30.0,237.16,237.14,24.6667239]
[1732570459650,20.4500239,237.23,237.14,24.6667239]
[1732570460763,20.4500239,237.25,237.16,20.4500239]
[1732570461366,20.4500239,237.17,237.05,4.2185]
[1732570461573,30.0,237.17,237.11,20.4500239]
[1732570462662,50.4500239,237.17,237.07,20.4500239]
[1732570462834,50.4500239,237.17,237.09,20.4500239]
[1732570463038,30.0,237.17,237.09,20.4500239]
[1732570463378,30.0,237.17,237.11,20.4500239]
[1732570463544,20.4500239,237.19,237.11,20.4500239]
[1732570463743,20.4500239,237.17,237.09,20.4500239]
[1732570463966,20.4500239,237.21,237.11,20.4500239]
[1732570464270,20.4500239,237.23,237.15,20.4500239]
[1732570464766,20.4500239,237.19,237.11,20.4500239]
[1732570465964,30.0,237.16,237.13,24.6669239]
[1732570466265,100.3330761,237.13,237.1,20.0]
[1732570466568,100.3330761,237.13,237.12,20.4500239]
[1732570466947,130.3330761,237.13,237.12,20.4500239]
[1732570467446,130.3330761,237.13,237.1,46.6875239]
[1732570467644,130.3330761,237.13,237.1,26.2375]
[1732570467948,130.3330761,237.13,237.12,20.4500239]
[1732570469045,130.3330761,237.13,237.1,20.4500239]
[1732570469268,130.3330761,237.13,237.1,21.2408909]
[1732570469767,130.3330761,237.13,237.12,20.4500239]
[1732570470066,130.3330761,237.13,237.1,25.4583909]
[1732570470373,130.3330761,237.13,237.12,40.9000478]
[1732570470563,100.3330761,237.13,237.12,64.6769318]
[1732570471242,100.3330761,237.13,237.12,64.8024218]
[1732570471642,20.4500239,237.31,237.12,84.9279118]
[1732570471865,20.4500239,237.33,237.25,20.4500239]
[1732570472052,20.4500239,237.33,237.25,24.6648239]
[1732570472236,76.2847,237.39,237.27,20.4500239]
[1732570472237,20.4500239,237.35,237.27,20.4500239]
[1732570472446,20.4500239,237.37,237.27,20.4500239]
[1732570473758,20.4500239,237.37,237.3,20.4500239]
[1732570474075,20.4500239,237.35,237.28,20.4500239]
[1732570474260,20.4500239,237.33,237.26,20.4500239]
[1732570474762,70.0,237.39,237.21,10.539]
[1732570474763,20.4500239,237.35,237.28,20.4500239]
[1732570475062,20.4500239,237.37,237.3,20.4500239]
[1732570475371,20.4500239,237.35,237.28,20.4500239]
[1732570476267,20.4500239,237.31,237.22,20.4500239]
[1732570476465,1.2639,237.35,237.26,20.4500239]
[1732570476466,20.4500239,237.35,237.26,20.4500239]
[1732570476688,20.4500239,237.35,237.28,20.4500239]
[1732570476965,20.4500239,237.37,237.28,20.4500239]
[1732570477173,20.4500239,237.33,237.26,20.4500239]
[1732570478246,20.4500239,237.35,237.26,24.6647239]
[1732570478447,20.4500239,237.39,237.3,20.4500239]
[1732570479160,20.4500239,237.35,237.28,20.4500239]
[1732570480073,20.4500239,237.43,237.33,20.4500239]
[1732570480269,19.9500239,237.41,237.33,20.4500239]
[1732570480568,20.4500239,237.43,237.35,20.4500239]
[1732570481075,19.47179458,237.44,237.37,20.4500239]
[1732570482184,19.47179458,237.44,237.38,4.2126]
[1732570482848,19.47179458,237.44,237.29,6.166]
[1732570482849,20.4500239,237.43,237.35,20.4500239]
[1732570483645,19.47179458,237.44,237.37,20.4500239]
[1732570484446,19.47179458,237.44,237.37,24.9532152]
[1732570485057,19.47179458,237.44,237.39,20.4500239]
[1732570485373,19.47179458,237.44,237.37,24.9532152]
[1732570486480,20.4500239,237.41,237.37,0.2904913]
[1732570487079,20.4500239,237.43,237.37,0.2904913]
[1732570487264,20.4500239,237.43,237.37,4.5031913]
[1732570487577,20.4500239,237.43,237.37,0.2904913]
[1732570487965,19.47179458,237.44,237.38,20.4500239]
[1732570488276,19.47179458,237.44,237.39,4.2124]
[1732570488580,19.47179458,237.44,237.42,20.4500239]
[1732570489148,19.47179458,237.44,237.4,20.4500239]
[1732570489580,19.47179458,237.44,237.39,4.2124]
[1732570490055,19.47179458,237.44,237.38,24.6625239]
[1732570491151,19.47179458,237.44,237.4,20.4500239]
[1732570491684,19.47179458,237.44,237.42,20.4500239]
[1732570492584,19.47179458,237.44,237.42,24.6617239]
[1732570493786,6.5624,237.55,237.42,24.6617239]
[1732570493787,20.4500239,237.55,237.43,30.417674]
[1732570493997,20.4500239,237.59,237.5,20.4500239]
[1732570494484,20.4500239,237.59,237.51,4.2103]
[1732570495184,20.4500239,237.57,237.5,20.4500239]
[1732570495393,20.4500239,237.57,237.5,24.6604239]
[1732570495978,20.4500239,237.59,237.5,24.6604239]
[1732570496982,11.47741633,237.64,237.56,20.4500239]
[1732570496983,10.21501633,237.64,237.56,20.4500239]
[1732570497460,10.21501633,237.64,237.58,20.4500239]
[1732570497868,10.21501633,237.64,237.6,20.4500239]
[1732570498171,10.21501633,237.64,237.62,20.4500239]
[1732570498567,10.21501633,237.64,237.63,4.2082]
[1732570499192,10.21501633,237.64,237.57,10.5231]
[1732570499486,20.4500239,237.63,237.55,20.0]
[1732570499688,10.21501633,237.64,237.55,20.0]
[1732570499689,20.4500239,237.61,237.55,20.0]
[1732570499991,10.21501633,237.64,237.6,20.4500239]
[1732570500156,10.21501633,237.64,237.58,20.4500239]
[1732570500665,10.21501633,237.64,237.59,4.2089]
[1732570501059,10.21501633,237.64,237.62,20.4500239]
[1732570501672,20.4500239,237.77,237.65,20.0]
[1732570501988,20.4500239,237.81,237.73,20.4500239]
[1732570502188,6.4151,237.85,237.75,20.4500239]
[1732570502189,20.4500239,237.83,237.75,20.4500239]
[1732570502412,20.4500239,237.85,237.77,20.4500239]
[1732570502590,20.4500239,237.83,237.76,4.2058]
[1732570503259,20.4500239,237.85,237.77,20.4500239]
[1732570504376,20.4500239,237.81,237.71,20.4500239]
[1732570504581,70.0,237.84,237.65,20.4500239]
[1732570504582,20.4500239,237.74,237.65,20.4500239]
[1732570505085,20.4500239,237.72,237.63,20.4500239]
[1732570505264,20.4500239,237.68,237.59,24.6589239]
[1732570505467,20.4500239,237.66,237.59,24.6589239]
[1732570505667,20.4500239,237.74,237.65,20.4500239]
[1732570506583,20.4500239,237.72,237.63,24.6581239]
[1732570507194,20.4500239,237.74,237.66,20.4500239]
[1732570508004,20.4500239,237.76,237.66,20.4500239]
[1732570508198,20.4500239,237.78,237.7,20.4500239]
[1732570508399,20.4500239,237.82,237.66,20.0]
[1732570508583,20.4500239,237.8,237.72,20.4500239]
[1732570510102,20.4500239,237.76,237.68,20.4500239]
[1732570510282,20.4500239,237.77,237.68,20.4500239]
[1732570510475,20.4500239,237.77,237.64,4.208]
[1732570510476,20.4500239,237.79,237.72,20.4500239]
[1732570510683,20.4500239,237.81,237.72,20.4500239]
[1732570511076,30.65551923,237.85,237.76,20.4500239]
[1732570511285,30.65551923,237.85,237.78,20.4500239]
[1732570511497,10.20549533,237.85,237.8,20.4500239]
[1732570511983,10.20549533,237.85,237.82,20.4500239]
[1732570512187,10.49018127,237.96,237.84,40.9000478]
[1732570512405,0.2098844,238.01,237.95,20.4500239]
[1732570512718,0.2098844,238.01,238.0,20.4500239]
[1732570513005,0.2098844,238.01,238.0,24.6516239]
[1732570513317,90.4500239,238.18,238.03,20.0]
[1732570513607,20.4500239,238.2,238.13,20.4500239]
[1732570513814,10.19023033,238.23,238.15,20.4500239]
[1732570514520,10.19023033,238.23,238.19,20.4500239]
[1732570514814,10.19023033,238.23,238.21,20.4500239]
[1732570515112,10.19023033,238.23,238.21,24.6479239]
[1732570515285,10.19023033,238.23,238.21,20.4500239]
[1732570515622,10.19023033,238.23,238.16,20.4500239]
[1732570515909,20.4500239,238.17,238.01,6.1062]
[1732570516117,20.4500239,238.12,238.04,20.4500239]
[1732570516413,70.0,238.08,237.92,4.203]
[1732570516909,70.0,238.16,237.98,10.0]
[1732570517208,70.0,238.16,237.97,10.5052]
[1732570517385,33.07683049,238.18,238.09,33.07683049]
[1732570517592,33.07683049,238.22,238.13,33.07683049]
[1732570517787,33.07683049,238.16,238.09,33.07683049]
[1732570518007,33.07683049,238.2,238.11,33.07683049]
[1732570518220,33.07683049,238.22,238.15,33.07683049]
[1732570518396,10.19023033,238.23,238.15,33.07683049]
[1732570518594,10.19023033,238.23,238.17,33.07683049]
[1732570518793,10.19023033,238.23,238.19,33.07683049]
[1732570519107,33.57720619,238.26,238.08,33.07683049]
[1732570519108,0.5003757,238.26,238.21,33.07683049]
[1732570519621,33.07683049,238.22,238.13,33.07683049]
[1732570519826,33.07683049,238.24,238.17,33.07683049]
[1732570520310,33.07683049,238.24,238.11,4.1997]
[1732570520311,33.07683049,238.24,238.15,33.07683049]
[1732570520512,33.07683049,238.18,238.1,20.0]
[1732570520723,33.07683049,238.18,238.09,33.07683049]
[1732570520910,33.07683049,238.16,238.07,33.07683049]
[1732570521291,33.07683049,238.2,238.11,33.07683049]
[1732570521590,33.07683049,238.14,238.07,33.07683049]
[1732570522328,33.07683049,238.16,238.07,33.07683049]
[1732570522886,33.07683049,238.2,238.11,33.07683049]
[1732570523191,33.07683049,238.22,238.13,33.07683049]
[1732570523720,33.07683049,238.19,238.11,33.07683049]
[1732570523926,70.0,238.18,238.11,33.07683049]
[1732570524110,33.07683049,238.19,238.11,33.07683049]
[1732570524624,33.07683049,238.18,238.11,33.07683049]
[1732570524951,33.07683049,238.18,238.09,33.07683049]
[1732570525492,33.07683049,238.12,238.03,33.07683049]
[1732570526120,103.07683049,238.06,237.97,33.07683049]
[1732570526420,103.07683049,238.06,237.84,33.07683049]
[1732570526421,33.07683049,238.02,237.95,33.07683049]
[1732570527093,33.07683049,238.02,237.84,33.07683049]
[1732570527094,33.07683049,238.0,237.91,33.07683049]
[1732570527299,33.07683049,238.0,237.84,33.07683049]
[1732570527300,33.07683049,238.0,237.93,33.07683049]
[1732570527511,33.07683049,237.98,237.91,33.07683049]
[1732570527825,33.07683049,237.98,237.89,33.07683049]
[1732570527995,30.0,237.97,237.87,33.07683049]
[1732570528206,33.07683049,237.92,237.83,33.07683049]
[1732570529031,30.0,237.91,237.85,33.07683049]
[1732570529215,30.0,237.91,237.89,33.07683049]
[1732570529400,30.0,237.91,237.89,37.28033049]
[1732570529900,30.0,237.91,237.89,33.07683049]
[1732570530834,30.0,237.91,237.85,33.07683049]
[1732570531007,134.33773049,237.91,237.83,33.07683049]
[1732570531209,30.0,237.91,237.85,33.07683049]
[1732570531622,30.0,237.91,237.83,33.07683049]
[1732570531834,30.0,237.91,237.85,33.07683049]
[1732570532328,70.0,237.9,237.81,33.07683049]
[1732570532532,30.0,237.89,237.83,33.07683049]
[1732570534323,30.0,237.89,237.87,33.07683049]
[1732570535612,30.0,237.89,237.85,33.07683049]
[1732570536707,30.0,237.89,237.87,33.07683049]
[1732570537030,30.0,237.89,237.85,33.07683049]
[1732570537234,30.0,237.89,237.83,33.07683049]
[1732570537440,33.07683049,237.88,237.79,33.07683049]
[1732570537612,30.0,237.87,237.79,33.07683049]
[1732570537807,30.0,237.87,237.82,33.07683049]
[1732570539931,30.0,237.87,237.84,33.07683049]
[1732570541034,30.0,237.87,237.86,33.07683049]
[1732570541714,30.0,237.87,237.84,33.07683049]
[1732570542731,30.0,237.87,237.82,33.07683049]
[1732570543116,30.0,237.87,237.84,33.07683049]
[1732570544116,30.0,237.87,237.8,33.07683049]
[1732570544323,30.0,237.87,237.73,0.12549]
[1732570544324,30.0,237.87,237.84,33.07683049]
[1732570544529,30.0,237.87,237.82,33.07683049]
[1732570545544,30.0,237.87,237.8,33.07683049]
[1732570545755,31.2611,237.87,237.8,33.07683049]
[1732570546055,30.0,237.87,237.82,33.07683049]
[1732570546933,30.0,237.87,237.8,33.07683049]
[1732570547236,31.2611,237.87,237.8,33.07683049]
[1732570547828,30.0,237.87,237.8,33.07683049]
[1732570548021,30.0,237.87,237.82,33.07683049]
[1732570548352,30.0,237.87,237.82,20.37933311]
[1732570549353,50.37933311,237.87,237.78,20.37933311]
[1732570549536,20.37933311,237.85,237.76,20.37933311]
[1732570549852,30.0,237.82,237.76,20.37933311]
[1732570551226,30.0,237.82,237.78,20.37933311]
[1732570551533,30.0,237.82,237.8,20.37933311]
[1732570552235,30.0,237.82,237.81,4.205]
[1732570552438,30.0,237.82,237.8,20.37933311]
[1732570553350,20.37933311,237.81,237.74,20.37933311]
[1732570553531,30.0,237.78,237.74,20.37933311]
[1732570555146,30.0,237.78,237.76,20.37933311]
[1732570556033,30.0,237.78,237.77,0.12549]
[1732570556229,30.0,237.78,237.77,4.33119]
[1732570557067,30.0,237.78,237.77,28.108074]
[1732570557646,30.0,237.78,237.77,4.33119]
[1732570559731,30.0,237.78,237.77,28.108074]
[1732570559935,30.0,237.78,237.76,20.37933311]
[1732570560134,30.0,237.78,237.76,24.58523311]
[1732570560930,30.0,237.78,237.76,20.37933311]
[1732570561459,31.2616,237.78,237.7,20.37933311]
[1732570561759,31.2616,237.78,237.65,4.2078]
[1732570561760,20.37933311,237.77,237.68,20.37933311]
[1732570561939,30.0,237.75,237.68,20.37933311]
[1732570562260,121.64113311,237.75,237.66,20.37933311]
[1732570562433,20.37933311,237.73,237.64,20.37933311]
[1732570562858,30.0,237.71,237.66,20.37933311]
[1732570564542,30.0,237.71,237.64,20.37933311]
[1732570564543,51.64133311,237.71,237.64,20.37933311]
[1732570564958,21.64133311,237.71,237.64,20.37933311]
[1732570565258,21.64133311,237.71,237.53,2.00150229]
[1732570565259,93.776884,237.55,237.38,4.2126]
[1732570565446,20.37933311,237.47,237.37,26.52746754]
[1732570565647,20.37933311,237.45,237.37,26.52746754]
[1732570565844,20.37933311,237.43,237.37,1.93543443]
[1732570566030,23.776884,237.42,237.37,1.93543443]
[1732570566252,23.776884,237.42,237.22,16.4351]
[1732570566253,10.0,237.35,237.22,20.37933311]
[1732570566449,20.37933311,237.3,237.2,20.37933311]
[1732570566653,20.37933311,237.28,237.17,0.5003757]
[1732570566874,20.0,237.24,237.17,0.5003757]
[1732570567077,20.37933311,237.18,237.17,0.5003757]
[1732570567755,20.37933311,237.22,237.17,0.5003757]
[1732570567956,16.4971,237.3,237.17,0.5003757]
[1732570567957,30.0,237.18,237.17,0.5003757]
[1732570568164,20.37933311,237.33,237.17,4.7166757]
[1732570568366,103.27232303,237.34,237.25,33.27232303]
[1732570568567,33.27232303,237.32,237.22,33.27232303]
[1732570568778,70.0,237.29,237.17,0.5003757]
[1732570568952,33.27232303,237.23,237.17,0.5003757]
[1732570569156,33.27232303,237.27,237.2,33.27232303]
[1732570569475,33.27232303,237.3,237.22,33.27232303]
[1732570569870,33.27232303,237.32,237.22,33.27232303]
[1732570570071,33.27232303,237.32,237.24,33.27232303]
[1732570570259,33.27232303,237.36,237.28,33.27232303]
[1732570570565,33.27232303,237.38,237.3,33.27232303]
[1732570571170,30.0,237.31,237.3,33.27232303]
[1732570571585,33.27232303,237.45,237.33,20.0]
[1732570571762,33.27232303,237.38,237.33,20.0]
[1732570571960,33.27232303,237.38,237.3,33.27232303]
[1732570572175,30.0,237.33,237.32,33.27232303]
[1732570572387,30.0,237.33,237.32,20.0]
[1732570572587,70.0,237.45,237.32,20.0]
[1732570572879,33.27232303,237.34,237.29,20.0]
[1732570573179,33.27232303,237.3,237.22,33.27232303]
[1732570573481,33.27232303,237.28,237.18,37.48852303]
[1732570574058,33.27232303,237.28,237.2,33.27232303]
[1732570574273,33.27232303,237.3,237.22,33.27232303]
[1732570575000,33.27232303,237.34,237.26,33.27232303]
[1732570575283,33.27232303,237.34,237.18,4.2162]
[1732570575284,33.27232303,237.28,237.2,33.27232303]
[1732570575590,33.27232303,237.28,237.17,0.5003757]
[1732570575591,33.27232303,237.24,237.17,0.5003757]
[1732570575775,70.0,237.29,237.17,0.5003757]
[1732570575776,33.27232303,237.22,237.17,0.5003757]
[1732570576081,33.27232303,237.29,237.21,33.27232303]
[1732570576265,33.27232303,237.31,237.23,33.27232303]
[1732570576580,33.27232303,237.35,237.27,33.27232303]
[1732570577174,33.27232303,237.31,237.23,33.27232303]
[1732570577484,33.27232303,237.27,237.19,33.27232303]
[1732570578263,33.27232303,237.25,237.17,0.5003757]
[1732570578464,33.27232303,237.23,237.17,0.5003757]
[1732570578659,33.27232303,237.27,237.18,33.27232303]
[1732570579073,33.27232303,237.25,237.18,33.27232303]
[1732570579269,33.27232303,237.23,237.17,0.5003757]
[1732570579561,33.27232303,237.25,237.17,0.5003757]
[1732570579769,33.27232303,237.27,237.18,33.27232303]
[1732570580070,1.2642,237.3,237.17,0.5003757]
[1732570580071,33.27232303,237.25,237.17,0.5003757]
[1732570580280,33.27232303,237.27,237.18,33.27232303]
[1732570580583,33.27232303,237.27,237.2,33.27232303]
[1732570580894,33.27232303,237.33,237.24,33.27232303]
[1732570581100,33.27232303,237.35,237.26,33.27232303]
[1732570581289,33.27232303,237.35,237.17,4.7165757]
[1732570581290,33.27232303,237.35,237.28,33.27232303]
[1732570581599,33.27232303,237.31,237.24,33.27232303]
[1732570582169,33.27232303,237.29,237.22,33.27232303]
[1732570582590,33.27232303,237.29,237.2,33.27232303]
[1732570583597,33.27232303,237.32,237.24,33.27232303]
[1732570584093,33.27232303,237.32,237.22,33.27232303]
[1732570584292,33.27232303,237.3,237.22,33.27232303]
[1732570584502,33.27232303,237.3,237.2,33.27232303]
[1732570584795,70.0,237.35,237.17,0.5003757]
[1732570584796,33.27232303,237.24,237.17,0.5003757]
[1732570585477,33.27232303,237.26,237.19,33.27232303]
[1732570585797,33.27232303,237.3,237.23,33.27232303]
[1732570586100,33.27232303,237.28,237.21,33.27232303]
[1732570586399,43.50014161,237.36,237.17,0.5003757]
[1732570586400,33.27232303,237.24,237.17,33.77269873]
[1732570586569,33.27232303,237.28,237.2,33.27232303]
[1732570586770,33.27232303,237.28,237.17,4.7165757]
[1732570586771,33.27232303,237.26,237.18,33.27232303]
[1732570586982,33.27232303,237.28,237.2,33.27232303]
[1732570587183,33.27232303,237.28,237.18,33.27232303]
[1732570587595,33.27232303,237.26,237.18,33.27232303]
[1732570587803,33.27232303,237.28,237.2,33.27232303]
[1732570587971,33.27232303,237.32,237.22,33.27232303]
[1732570588679,43.50014161,237.36,237.28,33.27232303]
[1732570588984,10.22781858,237.36,237.32,33.27232303]
[1732570589296,43.50014161,237.36,237.28,53.27232303]
[1732570589603,33.27232303,237.32,237.24,33.27232303]
[1732570589777,43.50014161,237.36,237.28,33.27232303]
[1732570589980,33.27232303,237.34,237.26,33.27232303]
[1732570590287,33.27232303,237.32,237.24,53.27232303]
[1732570590501,33.27232303,237.32,237.24,57.48742303]
[1732570590702,33.27232303,237.34,237.26,33.27232303]
[1732570590891,43.50014161,237.36,237.26,33.27232303]
[1732570591203,10.22781858,237.36,237.3,33.27232303]
[1732570591774,10.22781858,237.36,237.32,33.27232303]
[1732570592803,10.22781858,237.36,237.24,73.27232303]
[1732570592804,43.50014161,237.36,237.28,33.27232303]
[1732570593174,43.50014161,237.36,237.21,4.2156]
[1732570593175,33.27232303,237.32,237.24,33.27232303]
[1732570593499,33.27232303,237.3,237.21,4.2156]
[1732570593796,44.76404161,237.36,237.24,33.27232303]
[1732570593797,33.27232303,237.32,237.24,33.27232303]
[1732570594801,33.27232303,237.34,237.26,33.27232303]
[1732570595203,10.22781858,237.36,237.3,33.27232303]
[1732570595878,10.22781858,237.36,237.32,33.27232303]
[1732570596301,10.22781858,237.36,237.34,33.27232303]
[1732570597495,10.22781858,237.36,237.32,33.27232303]
[1732570598011,33.27232303,237.5,237.35,53.27232303]
[1732570598195,33.27232303,237.46,237.37,33.27232303]
[1732570598509,33.27232303,237.42,237.33,33.27232303]
[1732570598685,33.27232303,237.4,237.34,20.0]
[1732570599486,33.27232303,237.38,237.3,4.2139]
[1732570599687,33.27232303,237.36,237.28,4.2143]
[1732570599896,30.0,237.35,237.31,33.27232303]
[1732570600098,30.0,237.35,237.29,33.27232303]
[1732570601486,30.0,237.35,237.29,37.48642303]
[1732570601689,30.0,237.35,237.29,33.27232303]
[1732570602807,30.0,237.35,237.29,37.48652303]
[1732570603301,33.27232303,237.38,237.29,37.48652303]
[1732570603610,33.27232303,237.38,237.31,33.27232303]
[1732570605100,34.53612303,237.38,237.29,33.27232303]
[1732570605303,30.0,237.32,237.29,33.27232303]
[1732570605910,30.0,237.32,237.2,33.27232303]
[1732570605911,57.04920703,237.31,237.2,33.27232303]
[1732570606217,33.27232303,237.28,237.2,33.27232303]
[1732570607418,30.0,237.25,237.2,37.48812303]
[1732570607603,30.0,237.25,237.2,33.27232303]
[1732570608220,30.0,237.25,237.14,10.5421]
[1732570608393,30.0,237.25,237.18,37.48832303]
[1732570609211,30.0,237.25,237.2,33.27232303]
[1732570609421,30.0,237.25,237.18,37.48832303]
[1732570611205,30.0,237.25,237.2,33.27232303]
[1732570611425,30.0,237.25,237.22,33.27232303]
[1732570611718,30.0,237.25,237.24,33.27232303]
[1732570613010,72.56402803,237.38,237.21,20.0]
[1732570613325,33.27232303,237.34,237.27,33.27232303]
[1732570613503,33.27232303,237.38,237.29,33.27232303]
[1732570613700,33.27232303,237.4,237.31,33.27232303]
[1732570614609,33.27232303,237.34,237.25,33.27232303]
[1732570615001,34.53632303,237.34,237.25,37.48722303]
[1732570615502,30.0,237.31,237.25,37.48722303]
[1732570615705,30.0,237.31,237.25,33.27232303]
[1732570617029,30.0,237.31,237.27,33.27232303]
[1732570618020,31.2641,237.31,237.25,33.27232303]
[1732570618529,31.2641,237.31,237.2,20.4799099]
[1732570618530,20.4799099,237.3,237.2,20.4799099]
[1732570619026,70.0,237.29,237.2,20.4799099]
[1732570619210,20.4799099,237.26,237.18,20.4799099]
[1732570619720,20.4799099,237.26,237.18,24.6960099]
[1732570620304,21.7442099,237.28,237.18,24.6960099]
[1732570620501,21.7442099,237.28,237.2,20.4799099]
[1732570620703,20.4799099,237.3,237.2,20.4799099]
[1732570620928,30.0,237.31,237.26,20.4799099]
[1732570621224,30.0,237.31,237.2,20.4799099]
[1732570621225,1.2642,237.29,237.2,20.4799099]
[1732570621412,20.4799099,237.28,237.2,20.4799099]
[1732570622097,30.0,237.27,237.2,20.4799099]
[1732570622621,30.0,237.27,237.24,20.4799099]
[1732570622922,30.0,237.27,237.18,24.6961099]
[1732570623125,20.4799099,237.28,237.18,24.6961099]
[1732570623330,20.4799099,237.26,237.18,20.4799099]
[1732570623501,20.4799099,237.24,237.17,0.5003757]
[1732570623700,20.4799099,237.26,237.17,25.1965856]
[1732570623903,1.2643,237.27,237.17,25.1965856]
[1732570623904,20.4799099,237.24,237.17,0.5003757]
[1732570624124,30.0,237.22,237.17,0.5003757]
[1732570624329,30.0,237.22,237.17,20.9802856]
[1732570625109,30.0,237.22,237.21,20.4799099]
[1732570625310,20.4799099,237.3,237.21,20.4799099]
[1732570625523,20.4799099,237.3,237.23,20.4799099]
[1732570625722,199.0,237.33,237.28,20.4799099]
[1732570625935,199.0,237.33,237.32,20.4799099]
[1732570626605,199.0,237.33,237.3,20.4799099]
[1732570626806,199.0,237.33,237.28,20.4799099]
[1732570627427,199.0,237.33,237.26,20.4799099]
[1732570627814,199.0,237.33,237.3,20.4799099]
[1732570628021,30.0,237.31,237.3,20.4799099]
[1732570628218,30.0,237.31,237.27,20.0]
[1732570628418,30.0,237.31,237.27,40.4799099]
[1732570628632,30.0,237.31,237.28,4.2144]
[1732570629525,30.0,237.31,237.29,20.4799099]